Cogmind - Beta 16 --- EXPLORER MODE // 2025.11.25 @ 11:36:57 Player: K.K.Y. Result: Destroyed by 9Q-F8M(R) with Subdweller Laser Performance ------------- Evolutions (0) 0 Regions Visited (3) 600 Robots Destroyed (34) 170 Value Destroyed (964) 964 Prototype IDs (1) 20 Alien Tech Used (0) 0 Bonus (199) 199 TOTAL SCORE: 1953 Bonus ------- Follower Combat Kills 215 Friendly Fire -16 Cogmind --------- Core Integrity 0/250 Matter 296/300 Energy 70/100 System Corruption 1% Temperature Cool (6) Movement Core (300) Ox5 Location -10/Subcaves Parts ------- > --- POWER (1) -------- (None) > --- PROPULSION (2) --- (None) > --- UTILITY (3) ------ Improved Heat Sink Medium Storage Unit > --- WEAPON (2) ------- Improved Medium Laser Improved Medium Laser > --- INVENTORY (10) --- Light Nuclear Core Small Storage Unit Huge Storage Unit Machine Analyzer Splice Drone Bay Improved Medium Laser Beam Cannon Rocket Launcher Subdweller Shrapnel Launcher Peak State ------------ > --- POWER ------------ Ion Engine > --- PROPULSION ------- Light Treads Light Treads > --- UTILITY ---------- Improved Heat Sink Medium Storage Unit Improved Terrain Scanner > --- WEAPON ----------- Improved Medium Laser Improved Medium Laser > --- INVENTORY -------- Ion Engine Light Nuclear Core Small Storage Unit Huge Storage Unit Splice Drone Bay Improved Medium Laser Improved Medium Laser Beam Cannon Rocket Launcher Mining Laser [Rating: 18] Favorites ----------- Power Ion Engine Engine Ion Engine Propulsion Light Treads Treads Light Treads Leg Aluminum Leg Utility Medium Storage Unit Device Improved Heat Sink Storage Medium Storage Unit Weapon Improved Medium Laser Energy Gun Improved Medium Laser Energy Cannon Beam Cannon Launcher Subdweller Shrapnel Launcher Special Weapon Mining Laser Build | -11 -10 -10 -10 ------- Run | Yrd Mat Min Sub Slots Evolved 1 | . 1 . . Power . | . . . . Propulsion . | . . . . Utility 1 | . 1 . . Weapon . | . . . . Parts Attached 21 | 6 6 3 6 Power 2 | 1 1 . . Engine 2 | 1 1 . . Core . | . . . . Reactor . | . . . . Propulsion 4 | 2 . 1 1 Treads 3 | 2 . 1 . Leg 1 | . . . 1 Wheel . | . . . . Hover . | . . . . Flight . | . . . . Utility 5 | 1 1 2 1 Device 3 | . . 2 1 Storage 2 | 1 1 . . Processor . | . . . . Hackware . | . . . . Protection . | . . . . Artifact . | . . . . Weapon 10 | 2 4 . 4 Energy Gun 6 | 2 2 . 2 Energy Cannon 1 | . 1 . . Ballistic Gun . | . . . . Ballistic Cannon . | . . . . Launcher 1 | . . . 1 Special Weapon 2 | . 1 . 1 Impact Weapon . | . . . . Slashing Weapon . | . . . . Piercing Weapon . | . . . . Special Melee Weapon . | . . . . Unidentified Prototypes 1 | . 1 . . Parts Lost 8 | . 1 . 7 Power 1 | . . . 1 Propulsion 3 | . . . 3 Utility 2 | . . . 2 Weapon 2 | . 1 . 1 Highest Loss Streak 2 | . 1 . 2 To Critical Strikes . | . . . . Average Backups 8 | 3 6 9 9 Power 1 | . 1 2 1 Propulsion . | 1 . . . Utility 2 | . . 2 3 Weapon 4 | . 3 4 4 Tool/Special . | . . . . Unused Backups 8 | . 2 . 6 Power 1 | . . . 1 Propulsion . | . . . . Utility 3 | . . . 3 Weapon 4 | . 2 . 2 Tool/Special . | . . . . Average Slot Usage (%) 71 | . 71 90 59 Engine 9 | . 11 12 6 Treads 17 | . 25 25 9 Device 6 | . . 15 4 Storage 12 | . 12 12 12 Energy Gun 21 | . 19 25 21 Special Weapon 1 | . . . 3 Peak Build Rating 18 | 6 12 18 18 Average Rating 11 | 2 7 15 10 On Entrance 8 | . 6 11 18 Avg Prop Armor Cover (%) . | . . . . Naked Turns . | . . . . Heaviest Build 27 | 19 21 23 27 Greatest Support 40 | 40 40 40 40 Greatest Overweight (x) 6 | 2 . . 6 Average Overweight (x) . | . . . 1 Largest Inventory Capacity 25 | 10 25 10 10 Average Capacity 9 | 5 10 10 10 Most Carried 10 | 5 10 10 10 Average Carried 8 | 3 6 9 9 Final Capacity 10 | 10 10 10 10 Final Carried 10 | 2 8 10 9 Class Distribution -------------------- 100% | Hacker-Mutant Dominant Class ---------------- Hacker-Mutant | -10/Materials Hacker-Mutant | -10/Mines Hacker-Mutant | -10/Subcaves Resources | -11 -10 -10 -10 ----------- Run | Yrd Mat Min Sub Matter Collected 527 | 230 109 63 125 Remotely . | . . . . Salvage Created 1161 | . 452 189 520 Parts 71 | . 29 14 28 Haulers Intercepted 1 | . 1 . . Recyclers Shooed 1 | . . 1 . Parts Field Recycled . | . . . . Retrieved Matter . | . . . . Parts Self-Destructed . | . . . . Prevented . | . . . . Parts Restored . | . . . . Kills | -11 -10 -10 -10 ------- Run | Yrd Mat Min Sub Combat Hostiles Destroyed 26 | . 8 5 13 Guns 24 | . 8 5 11 Cannons 1 | . . . 1 Classes Destroyed 8 | . 5 1 2 Worker 1 | . . 1 . Tunneler 2 | . 1 1 . Hauler 1 | . 1 . . Turret 1 | . . . 1 Watcher 3 | . 3 . . Swarmer 7 | . 2 2 3 Grunt 11 | . 6 3 2 Subdweller 8 | . . . 8 Best Kill Streak 4 | . 4 2 4 Combat Bots Only 4 | . 4 2 3 Max Kills in Single Turn 2 | . 1 1 2 Gunslinging 1 | . . . 1 Exploded . | . . . . Melee . | . . . . Uniques/NPCs Destroyed . | . . . . Combat | -11 -10 -10 -10 -------- Run | Yrd Mat Min Sub Hostile Shots Fired 160 | . 39 11 110 Missed 46 | . 13 3 30 Hits 114 | . 26 8 80 Projectile 114 | . 26 8 80 Damage Taken 1187 | . 212 56 919 Core 259 | . 39 10 210 Absorbed by Shields . | . . . . Ignored by Resistances 726 | . 132 36 558 Core Remaining (%) 100 | 100 . . . Volleys Fired 103 | . 37 11 55 Largest 2 | . 2 2 2 Hottest 156 | . 112 112 156 Shots Fired 184 | . 51 23 110 Gun 175 | . 49 23 103 Cannon 2 | . 2 . . Launcher 1 | . . . 1 Special 6 | . . . 6 Kinetic 1 | . . . 1 Thermal 158 | . 26 23 109 Explosive . | . . . . Electromagnetic 25 | . 25 . . Robot Hit Streak 53 | . 28 26 53 Robot Miss Streak 1 | . 1 . 1 Penetration Max . | . . . . Secondary Targets 1 | . . . 1 Max Gunslinging Chain 1 | . . . 1 Shots Hit Robots 155 | . 43 19 93 Core Hits 48 | . 18 8 22 Critical Kills . | . . . . Critical Parts Destroyed . | . . . . Critical Strikes 13 | . 1 1 11 Burn 13 | . 1 1 11 Melee Attacks . | . . . . Impact . | . . . . Slashing . | . . . . Piercing . | . . . . Sneak Attacks . | . . . . Combat Hostiles . | . . . . Follow-up Attacks . | . . . . Damage Inflicted 2577 | . 726 310 1541 Guns 2355 | . 709 307 1339 Cannons 17 | . 17 . . Explosions 124 | . . . 124 Melee . | . . . . Ramming 9 | . . 3 6 Kinetic 124 | . . . 124 Thermal 2105 | . 387 307 1411 Explosive . | . . . . Electromagnetic 339 | . 339 . . Impact . | . . . . Slashing . | . . . . Piercing . | . . . . Highest Corruption 1 | . 1 1 1 Average Corruption 1 | . 1 1 1 Corruption Purged . | . . . . Corruption Blocked . | . . . . Effects 28 | . 3 8 17 Message Errors 6 | . . 2 4 Matter Fused 8 | . 2 2 4 Heat Flow Errors 5 | . . 2 3 Energy Discharges 2 | . . 1 1 Data Loss (minor) 4 | . 1 . 3 Data Loss (major) 1 | . . . 1 Misfires 2 | . . 1 1 Overload Shots . | . . . . Overflow Damage . | . . . . Projectiles . | . . . . Explosions . | . . . . Melee . | . . . . Knockbacks . | . . . . Impact . | . . . . Kinetic . | . . . . Secondary . | . . . . Self-Inflicted Damage 30 | . . . 30 Shots 1 | . . . 1 Rammed 2 | . . 1 1 Targets Rammed 2 | . . 1 1 Kicked . | . . . . Crushed . | . . . . Highest Temperature 393 | . 393 218 210 Average Temperature 82 | . 101 52 67 Received Heat Transfer 525 | . 183 33 309 Siege Activations . | . . . . Martial Activations . | . . . . Shielding Activations . | . . . . Robots Disrupted . | . . . . Combat Hostiles . | . . . . Robots Corrupted . | . . . . Combat Hostiles . | . . . . Parts Fried 1 | . 1 . . Impact Corruptions . | . . . . Robots Melted 3 | . 1 . 2 Combat Hostiles 1 | . . . 1 Parts Melted 5 | . 2 1 2 Heat Transferred 5552 | . 925 740 3887 Parts Sabotaged . | . . . . Parts Stolen . | . . . . Parts Stripped . | . . . . Power Chain Reactions . | . . . . Alert | -11 -10 -10 -10 ------- Run | Yrd Mat Min Sub Maximum Alert Level . | . . . . Low Security (%) 100 | 100 100 100 . Level 1 . | . . . . Level 2 . | . . . . Level 3 . | . . . . Level 4 . | . . . . Level 5 . | . . . . High Security . | . . . . Max Security . | . . . . Peak Influence 85 | . 85 59 . Initial . | . . . . Average 6 | . 9 4 . Influence Increases 631 | . 253 179 199 Destroy 0b10 Robot/C 420 | . 160 120 140 Destroy 0b10 Robot/NC 35 | . 25 10 . Destroy Leader 88 | . 48 30 10 Allied During Kill 11 | . . 7 4 Disable Machine 16 | . 4 12 . Destroy Structure 1 | . 1 . . Lose Combat Pursuer 60 | . 15 . 45 Influence Decreases 631 | . 253 179 199 Time Decay 542 | . 253 179 110 Lost Part 10 | . . . 10 Lost Ally 79 | . . . 79 Squads Dispatched . | . . . . Investigation . | . . . . Extermination . | . . . . Reinforcement . | . . . . Assault . | . . . . Garrison . | . . . . Intercept . | . . . . Searches Triggered . | . . . . Construction Impeded . | . . . . Haulers Reinforced . | . . . . Active Scanning Responses . | . . . . Cargo Convoy Interrupts . | . . . . Stealth | -11 -10 -10 -10 --------- Run | Yrd Mat Min Sub Distress Signals 1 | . 1 . . Communications Jammed . | . . . . Distress Signals . | . . . . Times Spotted 42 | . 12 6 24 Peak Tracking Total 5 | . 3 2 5 Tactical Retreats 3 | . 1 . 2 Traps | -11 -10 -10 -10 ------- Run | Yrd Mat Min Sub Traps Triggered 3 | . 3 . . Indirectly . | . . . . Trap Hack Attempts . | . . . . Triggered . | . . . . Disarmed . | . . . . Reprogrammed . | . . . . Reused . | . . . . Traps Extracted . | . . . . Installed . | . . . . Triggered . | . . . . Machines | -11 -10 -10 -10 ---------- Run | Yrd Mat Min Sub Machines Disabled 5 | . 1 3 1 Max in Single Turn 1 | . 1 1 1 Machines Repaired . | . . . . Machines Dismantled . | . . . . Machines Sabotaged . | . . . . Overloaded Fab Kills . | . . . . Hacking | -11 -10 -10 -10 --------- Run | Yrd Mat Min Sub Machines Accessed 1 | . . 1 . Terminals . | . . . . Fabricators . | . . . . Repair Stations . | . . . . Recycling Units . | . . . . Scanalyzers . | . . . . Garrison Access . | . . . . Total Hacks 1 | . . 1 . Successful 1 | . . 1 . Failed . | . . . . Catastrophic . | . . . . Database Lockouts . | . . . . Manual . | . . . . Terminals . | . . . . Fabricators . | . . . . Repair Stations . | . . . . Recycling Units . | . . . . Scanalyzers . | . . . . Garrison Access . | . . . . Terminal Hacks 1 | . . 1 . Open Door 1 | . . 1 . Fabricator Hacks . | . . . . Repair Station Hacks . | . . . . Recycling Unit Hacks . | . . . . Scanalyzer . | . . . . Garrison Access Hacks . | . . . . Unauthorized Hacks . | . . . . Terminals . | . . . . Fabricators . | . . . . Repair Stations . | . . . . Recycling Units . | . . . . Scanalyzers . | . . . . Garrison Access . | . . . . Data Cores Recovered . | . . . . Used . | . . . . Hacking Detections . | . . . . Full Trace Events . | . . . . Feedback Events . | . . . . Feedback Blocked . | . . . . Robot Schematics Acquired . | . . . . Robots Built . | . . . . Authchips . | . . . . Time . | . . . . Total Robot Build Rating . | . . . . Part Schematics Acquired . | . . . . Parts Built . | . . . . Authchips . | . . . . Time . | . . . . Total Part Build Rating . | . . . . Part Studies Acquired . | . . . . Parts Repaired . | . . . . Time . | . . . . Parts Recycled . | . . . . Recycled Matter . | . . . . Retrieved Matter . | . . . . Retrieved Components . | . . . . Parts Scanalyzed . | . . . . Part Schematics Acquired . | . . . . Parts Damaged . | . . . . Bothacking | -11 -10 -10 -10 ------------ Run | Yrd Mat Min Sub Used RIF Installer . | . . . . Robots Hacked . | . . . . Non-combat . | . . . . Combat . | . . . . Robot Hacks Applied . | . . . . Relay Couplers Released . | . . . . Fabnet Peak Effective % . | . . . . Robots Rewired . | . . . . Allies Hacked . | . . . . Hacks Repelled . | . . . . Allies | -11 -10 -10 -10 -------- Run | Yrd Mat Min Sub Total Allies 5 | . . 5 . Largest Group 5 | . . 5 5 Highest-Rated Group 85 | . . 85 85 Highest-Rated Ally 31 | . . 31 31 Total Orders . | . . . . Ally Attacks 60 | . . 5 55 Total Damage 702 | . . 82 620 Kills 8 | . . 1 7 Allies Corrupted . | . . . . Allies Melted . | . . . . Intel | -11 -10 -10 -10 ------- Run | Yrd Mat Min Sub Active Infowar (turns) 936 | . . 800 136 Terrain 936 | . . 800 136 Robot Analysis Total . | . . . . Derelict Logs Recovered . | . . . . Drone Launches . | . . . . Drone Recoveries . | . . . . Exploration | -11 -10 -10 -10 ------------- Run | Yrd Mat Min Sub Turns Passed 4786 | 60 1105 1368 2253 Spaces Moved 2263 | 43 584 743 893 Core 316 | 42 . . 274 Treads 1847 | 1 584 743 519 Legs 100 | . . . 100 Wheels . | . . . . Hover . | . . . . Flight . | . . . . Fastest Speed 50 | 50 160 160 160 Average Speed 179 | 99 160 160 211 Slowest Speed 350 | 160 160 160 350 Overloaded Moves . | . . . . Propulsion Burnouts . | . . . . Robots Hopped . | . . . . Potential Cave-ins . | . . . . Cave-ins Triggered . | . . . . Exploration Rate (%) 66 | 4 98 99 63 Regions Visited 3 Branch Regions 2 Pre-discovered Areas . | . . . . Known Exits Taken 3 | 1 1 1 . Unknown Exits Taken . | . . . . Scrap Searched 9 | . . . 9 Spaces Dug . | . . . . Terrain Destroyed 14 | . . . 14 Melee . | . . . . Projectile . | . . . . AOE 14 | . . . 14 Terrain Rammed . | . . . . Walls Destroyed . | . . . . Machines Disabled . | . . . . Actions | -11 -10 -10 -10 --------- Run | Yrd Mat Min Sub Total 2799 | 59 707 898 1135 Wait 370 | 4 59 136 171 Move 2260 | 42 583 742 893 Hop . | . . . . Pick Up 24 | 6 12 3 3 Fast Attach 10 | 3 2 2 3 Attach 12 | 3 6 . 3 Detach 4 | . 4 . . Swap 4 | . . 2 2 Drop 10 | 1 4 1 4 Fire 103 | . 37 11 55 Melee . | . . . . Ram . | . . . . Kick . | . . . . Crush 2 | . . 1 1 Escape Stasis . | . . . . Rewire . | . . . . Trap . | . . . . Miscellaneous . | . . . . Route ------- -11/Scrapyard -10/Materials (discovered 5 exits: *Mat x3 / *Min / *Sub) -10/Mines (discovered 4 exits: *Mat x2 / *Exi / *Sub) -10/Subcaves (discovered 2 exits: *Mat / *Rec) History --------- Turn | Location | Event 6 | -11/Scrapyard | Identified exit to Materials 6 | -11/Scrapyard | Discovered exit to Materials (range 14) 61 | -11/Scrapyard | Entered Materials 61 | -10/Materials | Evolved 1 slot: Utility x1 317 | -10/Materials | Build established: Hacker-Mutant 415 | -10/Materials | Identified exit to Subcaves 415 | -10/Materials | Discovered exit to Subcaves (range 9) 461 | -10/Materials | Identified exit to Materials 461 | -10/Materials | Discovered exit to Materials (range 16) 925 | -10/Materials | Discovered exit to Materials (range 15) 1039 | -10/Materials | Discovered exit to Materials (range 13) 1110 | -10/Materials | Identified exit to Mines 1110 | -10/Materials | Discovered exit to Mines (range 14) 1166 | -10/Materials | Entered Mines 1275 | -10/Mines | Discovered exit to Materials (range 8) 1282 | -10/Mines | Received a Rocket Launcher from a helpful Derelict 1750 | -10/Mines | Discovered exit to Subcaves (range 9) 1844 | -10/Mines | Assisted by bots powering up and referring to "LRC-V3" 1938 | -10/Mines | Found the Drone Emporium 1953 | -10/Mines | Found Prototype Device 2043 | -10/Mines | Discovered exit to Materials (range 12) 2229 | -10/Mines | Deemed a non-threat by the Exiles lab entrance 2231 | -10/Mines | Identified exit to Exiles 2231 | -10/Mines | Discovered exit to Exiles (range 5) 2534 | -10/Mines | Entered Subcaves 2534 | -10/Subcaves | Accompanied by 5 allies 2535 | -10/Subcaves | Approached by a straggling Scientist 2539 | -10/Subcaves | Led the pair of lost Derelicts to an unsafe place 2670 | -10/Subcaves | Disturbed a concealed Subdweller 2954 | -10/Subcaves | Shifting Twisted Machinery released Battle Cannon 2979 | -10/Subcaves | Shifting Twisted Machinery released Riot Gun 2981 | -10/Subcaves | Shifting Twisted Machinery released Flamer 3045 | -10/Subcaves | Identified exit to Recycling 3045 | -10/Subcaves | Discovered exit to Recycling (range 8) 3072 | -10/Subcaves | Lost 3 allies 3434 | -10/Subcaves | Core integrity fell below 50% 4114 | -10/Subcaves | Identified exit to Materials 4114 | -10/Subcaves | Discovered exit to Materials (range 7) 4236 | -10/Subcaves | Disturbed a concealed Subdweller 4542 | -10/Subcaves | Core integrity fell below 20% 4764 | -10/Subcaves | A Subdweller sparked back to life 4764 | -10/Subcaves | A Subdweller sparked back to life 4764 | -10/Subcaves | A Subdweller sparked back to life 4787 | -10/Subcaves | Destroyed by 9Q-F8M(R) with Subdweller Laser Last Messages --------------- 04535_ G-34 Mercenary destroyed. 04541_ G-47 Trooper destroyed. 04550_ Acquired 10 matter. 04565_ Acquired Imp. Heat Sink. 04567_ Acquired 10 matter. 04576_ Acquired Aluminum Leg. 04583_ KMFZTIO PFYCMJGSNPWDTB|XOK 04608_ System corrupted: Heat flow error (+226). 04612_ Acquired 10 matter. 04628_ System corrupted: Matter fused (-9). 04764_ 9Q-F8M(R) creaks and sparks as it begins to move. 04764_ L8-2OQ(R) creaks and sparks as it begins to move. 04764_ 0M-BN8(R) creaks and sparks as it begins to move. 04769_ 0M-BN8(R) destroyed. 04780_ 9Q-F8M(R) affixes Scrap Shield Fragment to Scrap Shield. 04784_ Aluminum Leg destroyed. Map ----- +----------------------------------------------------+ | ?????????????????????????????????????????????????? | | ?????????????????????????????????????????????????? | | ?????????????????????????????????????????????????? | | ?????????????????????????????????????????????????? | | ?????????????????????????????????????????????????? | | ?????????????????????????????????????????????????? | | ?????????????????????????????????????????????????? | | ?????????????????????????????????????????????????? | | ?????????????????????????????????????????????????? | | ?????????????????????????????????????????????????? | | ??????????????????????????? ?????????????????????? | | ??????????????????????????# ????????????????????? | | ?????????????????????????# ?????????????????????? | | ????????????????????????? $?????????????????????? | | ???????????????????????## ?????????????????????? | | ???????????????????????# ?????????????????????? | | ??????????????????????## ##????????????????????? | | ?????????????????????## ?????????????????????? | | ?????????????????????# ?????????????????????? | | ??????????? ?????????? #?????????????????????? | | ??????????? ??#?????# #?????????????????????? | | ????????????? # ##### ####??????????????????? | | ??????????????? #??????????????????# | | ?????????????????? *